bitfinex-derivatives/quotes_SOLF0:USTF0_20250606
["timestamp","ask_amount","ask_price","bid_price","bid_amount"]
[1749226685995,14.75936925,151.06,151.05,6.46164847]
[1749226686198,17.31478633,151.06,151.05,6.46164847]
[1749226686397,19.48441854,151.06,151.05,6.46164847]
[1749226686697,19.48441854,151.06,150.95,8.18249077]
[1749226686698,12.86971854,151.06,150.96,41.90466925]
[1749226686899,8.14466925,151.02,150.97,6.6186]
[1749226687191,4.72418747,151.05,150.98,8.14466925]
[1749226687390,10.41046925,151.06,150.99,6.6176]
[1749226687592,4.72498503,151.05,150.99,6.6176]
[1749226687793,6.6163,151.03,151.0,0.04585909]
[1749226688099,0.05039293,151.04,151.0,8.19052834]
[1749226688295,0.05039293,151.04,151.0,0.04585909]
[1749226688493,4.77537796,151.04,151.0,0.04585909]
[1749226688693,0.05039293,151.04,151.0,0.04585909]
[1749226688889,6.6161,151.03,151.0,0.04585909]
[1749226689295,8.19506218,151.04,151.0,0.04585909]
[1749226689492,6.6161,151.03,151.0,10.04585909]
[1749226689793,0.05039293,151.04,151.0,16.66285909]
[1749226690000,6.6163,151.03,151.0,10.04585909]
[1749226690598,6.6164,151.03,151.0,10.04585909]
[1749226690798,0.05039293,151.04,151.0,10.04585909]
[1749226691099,8.19506218,151.04,151.0,10.04585909]
[1749226691300,6.6165,151.02,151.0,10.04585909]
[1749226691800,6.6162,151.03,151.0,10.04585909]
[1749226692999,8.19506218,151.04,151.0,10.04585909]
[1749226693403,12.87923537,151.04,151.0,10.04585909]
[1749226693600,8.19506218,151.04,151.0,10.04585909]
[1749226694001,12.87933006,151.04,151.0,10.04585909]
[1749226694197,8.19506218,151.04,151.0,10.04585909]
[1749226694603,6.6169,151.01,151.0,10.04585909]
[1749226697208,40.3761,151.03,151.0,10.04585909]
[1749226697710,6.6165,151.02,151.0,10.04585909]
[1749226699313,6.6169,151.01,151.0,10.04585909]
[1749226700108,33.76,151.03,151.0,10.04585909]
[1749226700305,0.05039293,151.04,151.0,10.04585909]
[1749226700513,0.05039293,151.04,151.02,6.6164]
[1749226701808,0.05039293,151.04,151.02,16.6164]
[1749226702010,0.05039293,151.04,151.03,6.616]
[1749226704818,0.05039293,151.04,151.02,16.6161]
[1749226706111,0.05039293,151.04,151.03,6.616]
[1749226706615,0.05039293,151.04,151.03,14.76066925]
[1749226706922,33.76,151.09,151.04,8.14466925]
[1749226707216,33.76,151.09,151.02,12.3157]
[1749226707217,33.76,151.09,151.03,8.14466925]
[1749226707415,4.69477983,151.08,151.02,12.3157]
[1749226707608,4.69477983,151.08,151.03,8.14466925]
[1749226707814,4.74242045,151.07,151.03,8.18866778]
[1749226708011,0.04764062,151.07,151.03,8.18866778]
[1749226708212,4.74242045,151.07,151.04,6.6153]
[1749226708419,0.04764062,151.07,151.04,6.6153]
[1749226709622,0.04764062,151.07,151.05,6.615]
[1749226711717,0.04764062,151.07,151.04,6.6154]
[1749226712022,0.04764062,151.07,151.03,8.18866778]
[1749226712316,0.04764062,151.07,151.05,6.6149]
[1749226714026,6.66194062,151.07,151.05,10.0]
[1749226714221,4.75900071,151.07,151.05,10.0]
[1749226714415,8.19230987,151.07,151.05,10.0]
[1749226714626,6.6147,151.06,151.05,10.0]
[1749226715026,11.32945885,151.06,151.05,10.0]
[1749226715418,6.6147,151.06,151.05,10.0]
[1749226715821,11.33061848,151.06,151.05,10.0]
[1749226716928,11.32510264,151.06,151.05,10.0]
[1749226717228,6.6147,151.06,151.05,10.0]
[1749226717429,11.32521434,151.06,151.05,10.0]
[1749226717629,11.32525664,151.06,151.05,10.0]
[1749226717825,6.6147,151.06,151.05,10.0]
[1749226718129,11.32234069,151.06,151.05,10.0]
[1749226718328,6.6147,151.06,151.05,10.0]
[1749226718528,11.32190537,151.06,151.05,10.0]
[1749226720333,11.32200459,151.06,151.05,10.0]
[1749226720531,6.6147,151.06,151.05,10.0]
[1749226720732,11.32188747,151.06,151.05,10.0]
[1749226722336,11.34814607,151.06,151.05,10.0]
[1749226722628,11.34915957,151.06,151.05,9.94960707]
[1749226722834,11.34915957,151.06,151.03,0.04399853]
[1749226722835,6.6156,151.04,151.03,0.04399853]
[1749226723035,53.25353771,151.04,151.03,0.04399853]
[1749226723238,53.25353771,151.04,151.03,9.853e-05]
[1749226723632,53.25806419,151.04,151.03,9.853e-05]
[1749226725229,53.25806419,151.04,151.03,10.00009853]
[1749226725431,53.26180709,151.04,151.03,10.00009853]
[1749226725831,53.2617292,151.04,151.03,10.00009853]
[1749226727138,38.50145995,151.04,151.03,10.00009853]
[1749226727543,38.49275494,151.04,151.03,10.00009853]
[1749226727836,4.73275494,151.04,151.03,16.61609853]
[1749226728638,33.80764062,151.07,151.04,6.6153]
[1749226728938,4.713475,151.06,151.04,6.6153]
[1749226729133,4.713475,151.05,151.04,6.6153]
[1749226729441,4.71352624,151.05,151.04,6.6153]
[1749226730039,33.80764062,151.07,151.05,6.615]
[1749226730231,4.7078247,151.06,151.05,6.615]
[1749226730433,4.707713,151.06,151.05,6.615]
[1749226730834,4.70762916,151.06,151.05,6.615]
[1749226731240,4.70762916,151.06,151.04,6.6153]
[1749226731428,33.80764062,151.07,151.04,6.6153]
[1749226731634,4.70944763,151.06,151.04,6.6153]
[1749226731938,33.80764062,151.07,151.04,6.6153]
[1749226732237,4.70924291,151.06,151.04,6.6153]
[1749226732427,33.80764062,151.07,151.04,6.6153]
[1749226732428,4.70924291,151.05,151.04,6.6153]
[1749226733238,4.73979346,151.05,151.04,6.6153]
[1749226733740,4.74008561,151.05,151.04,6.6153]
[1749226734442,4.74008561,151.05,151.03,16.61589853]
[1749226734738,40.42194062,151.07,151.03,10.00009853]
[1749226734940,4.73989185,151.06,151.03,10.00009853]
[1749226735129,4.73989185,151.05,151.03,10.00009853]
[1749226735334,40.42194062,151.07,151.03,10.00009853]
[1749226735535,4.73992313,151.06,151.04,6.6156]
[1749226735735,4.73983879,151.05,151.04,6.6156]
[1749226735940,40.42194062,151.07,151.04,6.6156]
[1749226736139,4.73983879,151.06,151.03,16.61589853]
[1749226736439,4.73983879,151.05,151.03,16.61589853]
[1749226736638,33.80764062,151.07,151.03,16.61589853]
[1749226736841,4.7413015,151.06,151.03,16.61589853]
[1749226737139,4.7413015,151.05,151.04,6.6155]
[1749226738242,4.7413015,151.05,151.03,16.61589853]
[1749226738441,4.74667722,151.04,151.03,16.61589853]
[1749226738641,6.6147,151.06,151.03,16.61589853]
[1749226738842,4.74667722,151.05,151.03,16.61589853]
[1749226739042,4.74667722,151.04,151.03,16.61589853]
[1749226739942,4.75480708,151.04,151.03,16.61589853]
[1749226740142,4.7548107,151.04,151.03,16.61589853]
[1749226740343,4.75476774,151.04,151.03,16.61589853]
[1749226740641,4.75477789,151.04,151.03,10.00009853]
[1749226741440,6.6147,151.06,151.04,6.6155]
[1749226741644,4.75649284,151.05,151.04,6.6155]
[1749226741837,41.95230987,151.07,151.03,10.00009853]
[1749226742237,4.75728534,151.06,151.03,10.00009853]
[1749226742443,4.75728534,151.05,151.03,10.00009853]
[1749226742641,4.75728534,151.04,151.03,10.00009853]
[1749226743048,8.14466925,151.05,151.03,10.00009853]
[1749226743341,4.75677862,151.04,151.03,10.00009853]
[1749226743542,11.37237862,151.04,151.03,10.00009853]
[1749226743934,11.36671905,151.04,151.03,10.00009853]
[1749226744132,11.36684428,151.04,151.03,10.00009853]
[1749226745245,11.36852921,151.04,151.03,10.00009853]
[1749226745541,4.75292921,151.04,151.03,10.00009853]
[1749226745739,33.80764062,151.07,151.03,10.00009853]
[1749226745939,4.75435175,151.06,151.03,10.00009853]
[1749226746142,4.75435175,151.05,151.03,10.00009853]
[1749226746444,4.75435175,151.04,151.03,10.00009853]
[1749226746944,11.36901118,151.04,151.03,10.00009853]
[1749226747639,4.75341118,151.04,151.03,10.00009853]
[1749226748138,4.7557653,151.04,151.03,10.00009853]
[1749226748337,6.615,151.06,151.03,10.00009853]
[1749226748538,4.7569672,151.05,151.03,10.00009853]
[1749226748741,40.42214062,151.07,151.03,10.00009853]
[1749226748944,4.74936241,151.06,151.03,10.00009853]
[1749226749140,4.74936241,151.05,151.03,10.00009853]
[1749226749335,40.42214062,151.07,151.04,6.6154]
[1749226749535,4.74963052,151.06,151.04,6.6154]
[1749226749739,4.74963052,151.05,151.04,6.6154]
[1749226749937,40.42214062,151.07,151.04,6.6154]
[1749226750146,4.74230313,151.06,151.04,6.6154]
[1749226750446,40.42214062,151.07,151.04,6.6154]
[1749226750646,11.35729653,151.06,151.04,6.6154]
[1749226750841,6.6147,151.06,151.04,6.6154]
[1749226752043,4.75277656,151.05,151.03,16.61589853]
[1749226752244,6.6147,151.06,151.03,16.61589853]
[1749226752444,4.75286706,151.05,151.03,16.61589853]
[1749226752743,6.6147,151.06,151.04,6.6156]
[1749226752946,6.6147,151.06,151.03,10.00009853]
[1749226753349,6.6147,151.06,151.03,16.61569853]
[1749226753944,33.80764062,151.07,151.03,16.61569853]
[1749226754145,4.76853699,151.06,151.03,10.00009853]
[1749226754437,4.76853699,151.05,151.03,10.00009853]
[1749226754642,6.6155,151.05,151.03,10.00009853]
[1749226754843,41.95230987,151.07,151.03,10.00009853]
[1749226755051,6.6156,151.04,151.03,10.00009853]
[1749226755249,11.38355742,151.04,151.03,10.00009853]
[1749226755747,11.38253309,151.04,151.03,10.00009853]
[1749226756346,11.38010707,151.04,151.03,10.00009853]
[1749226758150,11.36587417,151.04,151.03,10.00009853]
[1749226759351,4.75852781,151.04,150.97,2.1172]
[1749226759552,6.6174,151.0,150.97,2.1172]
[1749226759745,4.75852781,150.99,150.97,2.1172]
[1749226759949,14.76176925,151.01,150.97,8.7355]
[1749226760146,4.75529699,151.0,150.97,8.7355]
[1749226760347,4.75529699,150.99,150.97,8.7355]
[1749226760648,0.05081523,151.0,150.98,6.618]
[1749226761455,0.05081523,151.0,150.98,16.618]
[1749226761857,5.03684806,150.99,150.98,16.618]
[1749226763457,0.05081523,151.0,150.98,16.618]
[1749226763658,5.04213383,150.99,150.98,16.618]
[1749226764555,0.05081523,151.0,150.98,16.618]
[1749226764755,5.00484209,150.99,150.98,16.618]
[1749226764957,5.00482483,150.99,150.98,10.0]
[1749226765157,0.05081523,151.0,150.98,10.0]
[1749226765360,5.00548202,150.99,150.98,10.0]
[1749226765756,5.00548202,150.99,150.98,16.6182]
[1749226768362,5.01980279,150.99,150.98,16.6182]
[1749226768860,5.01997297,150.99,150.98,16.6182]
[1749226769063,5.02112479,150.99,150.98,16.6182]
[1749226770163,0.05081523,151.0,150.98,16.6182]
[1749226770363,5.01843771,150.99,150.98,16.6182]
[1749226771965,5.01773407,150.99,150.98,16.6182]
[1749226772260,5.01770515,150.99,150.98,16.6182]
[1749226773061,5.01729795,150.99,150.98,16.6182]
[1749226773457,0.05081523,151.0,150.98,16.6182]
[1749226773657,5.01693592,150.99,150.98,16.6182]
[1749226773861,5.01720112,150.99,150.98,16.6182]
[1749226774261,5.01727779,150.99,150.98,16.6182]
[1749226774872,5.01343418,150.99,150.98,16.6182]
[1749226775770,5.01343418,150.99,150.98,10.0]
[1749226776166,0.05081523,151.0,150.98,10.0]
[1749226776371,33.74,151.05,150.99,8.14466925]
[1749226776571,5.01499663,151.04,150.98,43.74]
[1749226776774,6.6164,151.02,150.99,6.6175]
[1749226777270,5.0142749,151.01,150.99,0.04865095]
[1749226777576,5.01352713,151.0,150.99,0.04865095]
[1749226777768,13.15819638,151.0,150.99,0.04865095]
[1749226778570,14.76196925,151.0,150.99,0.04865095]
[1749226778772,13.08063126,151.0,150.98,10.0]
[1749226778967,6.6178,150.99,150.98,10.0]
[1749226779366,8.14466925,151.0,150.89,33.74]
[1749226779573,14.76316925,150.98,150.94,6.6197]
[1749226779972,8.1939267,150.98,150.94,0.04407288]
[1749226780268,8.1939267,150.98,150.95,6.6195]
[1749226780566,8.1939267,150.98,150.94,0.04407288]
[1749226781673,8.1939267,150.98,150.95,6.6194]
[1749226782275,4.93207349,150.97,150.95,6.6194]
[1749226782478,8.1939267,150.98,150.95,6.6194]
[1749226782774,8.1939267,150.98,150.96,6.619]
[1749226782974,8.1939267,150.98,150.94,10.04407288]
[1749226783174,8.1939267,150.98,150.95,6.6193]
[1749226785076,8.1939267,150.98,150.96,6.619]
[1749226785276,0.04925745,150.98,150.94,10.04407288]
[1749226785483,0.04925745,150.98,150.95,12.55786925]
[1749226785780,33.74,151.01,150.97,8.14466925]
[1749226786569,33.78305248,151.01,150.96,8.14466925]
[1749226786769,33.78305248,151.01,151.0,6.6173]
[1749226786978,38.67552646,151.01,151.0,6.6173]
[1749226787778,38.67552646,151.01,150.99,6.66053291]
[1749226787979,33.78305248,151.01,150.99,6.66053291]
[1749226788478,33.78305248,151.01,151.0,6.6173]
[1749226788677,38.6863316,151.01,151.0,6.6173]
[1749226789080,38.68724712,151.01,151.0,6.6173]
[1749226789277,38.68768543,151.01,151.0,6.6173]
[1749226789486,38.68759407,151.01,151.0,6.6173]
[1749226789680,33.78305248,151.01,151.0,6.6173]
[1749226789983,4.94772337,151.01,151.0,6.6173]
[1749226790185,0.04305248,151.01,151.0,6.6173]
[1749226790884,4.95247538,151.01,151.0,6.6173]
[1749226791086,0.04305248,151.01,151.0,6.6173]
[1749226794096,4.96222456,151.01,151.0,6.6173]
[1749226794294,4.96246012,151.01,151.0,6.6173]
[1749226794494,4.96246557,151.01,151.0,6.6173]
[1749226795292,0.04305248,151.01,151.0,6.6173]
[1749226796397,4.97145188,151.01,151.0,6.6173]
[1749226796592,33.74,151.07,151.06,6.6147]
[1749226798096,0.04248874,151.08,151.07,6.6142]
[1749226800098,0.04248874,151.08,151.05,0.04572894]
[1749226800295,0.04248874,151.08,151.06,6.6145]
[1749226800499,8.18715799,151.08,151.05,0.04572894]
[1749226800800,8.14466925,151.06,151.05,0.04572894]
[1749226801202,8.14466925,151.06,151.05,6.66082894]
[1749226801498,8.14466925,151.07,151.05,6.66082894]
[1749226801702,8.18715799,151.08,151.06,6.6143]
[1749226801894,8.18715799,151.08,151.05,0.04572894]
[1749226802198,8.18715799,151.08,151.05,6.66062894]
[1749226802592,8.18715799,151.08,151.05,0.04572894]
[1749226802790,8.18715799,151.08,151.05,6.66052894]
[1749226802995,0.04248874,151.08,151.05,0.04572894]
[1749226803191,0.04248874,151.08,151.07,6.6142]
[1749226803491,159.67470419,151.13,151.06,8.14466925]
[1749226803492,167.81937344,151.13,151.06,8.14466925]
[1749226803904,167.81937344,151.13,151.08,6.6138]
[1749226804203,6.6126,151.11,151.06,10.0]
[1749226804502,0.04858602,151.1,151.07,0.04180669]
[1749226805201,33.72,151.13,151.09,8.14466925]
[1749226805597,6.6123,151.12,151.09,14.75786925]
[1749226805794,33.72,151.13,151.07,12.54267594]
[1749226806297,2.61270891,151.12,151.07,12.54267594]
[1749226806497,2.56489667,151.11,151.09,8.14466925]
[1749226806698,0.04781224,151.12,151.11,8.14466925]
[1749226806897,2.60981987,151.12,151.09,8.14466925]
[1749226807103,0.04781224,151.12,151.07,12.54267594]
[1749226807299,2.5615228,151.11,151.07,12.54267594]
[1749226807499,0.04781224,151.12,151.07,12.54267594]
[1749226808902,6.66011224,151.12,151.09,6.6131]
[1749226809103,0.04781224,151.12,151.09,8.14466925]
[1749226809307,0.04781224,151.12,151.11,6.6125]
[1749226809704,0.04781224,151.12,151.07,12.54267594]
[1749226810010,0.04781224,151.12,151.08,6.6137]
[1749226810403,9.1722537,151.11,151.09,6.6133]
[1749226810603,6.6128,151.11,151.09,6.6133]
[1749226810906,2.60726594,151.12,151.1,6.6127]
[1749226811301,0.04781224,151.12,151.09,8.14466925]
[1749226811501,0.04781224,151.12,151.1,6.6129]
[1749226812508,0.04781224,151.12,151.11,6.6125]
[1749226814207,0.04781224,151.12,151.1,6.6127]
[1749226814607,0.04781224,151.12,151.08,8.14466925]
[1749226814909,0.04781224,151.12,151.1,8.14466925]
[1749226815102,2.56983927,151.15,151.1,8.14466925]
[1749226815298,15.62925295,151.2,151.13,8.14466925]
[1749226815506,2.57001142,151.19,151.13,8.14466925]
[1749226815805,9.17971142,151.18,151.14,6.6109]
[1749226816106,8.14466925,151.16,151.14,0.04982996]
[1749226816301,9.18071142,151.15,151.14,0.04982996]
[1749226816507,6.6107,151.15,151.14,0.04982996]
[1749226817007,33.72,151.17,151.14,6.66082996]
[1749226817209,33.72,151.17,151.14,0.04982996]
[1749226817405,0.04500831,151.18,151.14,0.04982996]
[1749226819106,0.04500831,151.18,151.15,6.6105]
[1749226819605,6.65470831,151.18,151.14,16.66082996]
[1749226820306,0.04500831,151.18,151.14,10.04982996]
[1749226820506,8.14466925,151.17,151.14,10.04982996]
[1749226821009,14.75546925,151.15,151.14,10.04982996]
[1749226821213,17.31384991,151.15,151.14,10.04982996]
[1749226821509,17.32716333,151.15,151.14,10.04982996]
[1749226821706,14.75546925,151.15,151.14,10.04982996]
[1749226821906,22.27108943,151.15,151.14,10.04982996]
[1749226823210,22.27610044,151.15,151.14,10.04982996]
[1749226823409,7.52063119,151.15,151.14,10.04982996]
[1749226823613,33.7,151.16,151.14,10.04982996]
[1749226824208,41.84466925,151.16,151.14,10.04982996]
[1749226825117,33.7,151.16,151.14,10.04982996]
[1749226825716,2.5785258,151.15,151.14,10.04982996]
[1749226825916,7.54868864,151.15,151.14,10.04982996]
[1749226826217,14.15938864,151.15,151.14,10.04982996]
[1749226827218,14.16310403,151.15,151.14,10.04982996]
[1749226827418,7.55240403,151.15,151.14,10.04982996]
[1749226827609,41.84466925,151.16,151.14,10.04982996]
[1749226827810,0.04500831,151.18,151.14,10.04982996]
[1749226828115,7.57331621,151.18,151.15,6.6104]
[1749226828921,6.65450831,151.18,151.14,16.66092996]
[1749226829120,9.22365882,151.18,151.14,16.66092996]
[1749226829423,14.17753617,151.18,151.14,16.66092996]
[1749226829626,14.17753617,151.18,151.15,6.6107]
[1749226830426,7.56803617,151.18,151.15,6.6107]
[1749226830722,7.57587197,151.18,151.14,18.19449921]
[1749226831020,34.04,151.25,151.16,8.14466925]
[1749226831221,7.53453654,151.24,151.2,8.14466925]
[1749226831424,7.53453654,151.23,151.2,8.14466925]
[1749226831621,7.53453654,151.26,151.2,8.14466925]
[1749226831823,10.44386925,151.27,151.2,8.14466925]
[1749226831824,6.6072,151.24,151.2,8.14466925]
[1749226832018,4.9628393,151.23,151.2,8.19031769]
[1749226832220,7.52847233,151.23,151.2,8.19031769]
[1749226832419,6.6077,151.22,151.2,0.04564844]
[1749226832615,7.53300695,151.23,151.2,0.04564844]
[1749226832830,13.10114878,151.22,151.2,0.04564844]
[1749226833120,9.18452025,151.21,151.2,0.04564844]
[1749226833321,7.53233849,151.21,151.15,36.2937]
[1749226833521,8.14466925,151.19,151.15,36.2937]
[1749226833716,6.6103,151.16,151.14,10.0]
[1749226834121,6.6107,151.15,151.14,10.0]
[1749226834519,14.75536925,151.15,151.14,10.0]
[1749226834721,22.32377957,151.15,151.14,10.0]
[1749226835826,14.17911032,151.15,151.14,10.0]
[1749226836026,22.319328,151.15,151.14,10.0]
[1749226837629,22.30864947,151.15,151.14,10.0]
[1749226838325,14.16398022,151.15,151.14,10.0]
[1749226838532,6.6107,151.15,151.14,10.0]
[1749226838829,6.65705086,151.16,151.14,10.0]
[1749226839031,0.04665086,151.16,151.14,10.0]
[1749226839331,6.6107,151.15,151.14,10.0]
[1749226839534,4.93712079,151.15,151.14,10.0]
[1749226839825,0.04665086,151.16,151.14,10.0]
[1749226840831,6.6107,151.15,151.14,10.0]
[1749226841034,0.04665086,151.16,151.14,10.0]
[1749226841226,2.58802505,151.15,151.14,10.0]
[1749226841931,2.58802562,151.15,151.14,10.0]
[1749226842628,26.32452684,151.15,151.14,10.0]
[1749226842824,21.40121456,151.15,151.14,10.0]
[1749226843025,26.33512545,151.15,151.14,10.0]
[1749226843331,26.33689203,151.15,151.14,10.0]
[1749226844424,26.34633924,151.15,151.14,10.0]
[1749226845527,21.40187563,151.15,151.14,10.0]
[1749226845842,7.53496218,151.15,151.14,10.0]
[1749226846130,2.58998844,151.15,151.14,10.0]
[1749226846333,14.14980671,151.15,151.14,10.0]
[1749226847730,14.12613689,151.15,151.14,10.0]
[1749226847931,14.12576843,151.15,151.14,10.0]
[1749226848238,11.53761023,151.15,151.14,10.0]
[1749226848431,14.12474474,151.15,151.14,10.0]
[1749226848632,14.12474356,151.15,151.14,10.0]
[1749226849236,14.12480884,151.15,151.14,10.0]
[1749226849539,14.11183411,151.15,151.14,10.0]
[1749226850035,14.11250391,151.15,151.14,10.0]
[1749226850435,14.11280311,151.15,151.14,10.0]
[1749226850832,14.1146976,151.15,151.14,10.0]
[1749226851043,9.19886761,151.15,151.14,10.0]
[1749226851337,9.19844011,151.15,151.14,10.0]
[1749226851537,6.6107,151.15,151.14,10.0]
[1749226851837,14.11396148,151.15,151.14,10.0]
[1749226852540,6.6107,151.15,151.14,10.0]
[1749226852738,14.10922686,151.15,151.14,10.0]
[1749226853133,11.51962558,151.15,151.14,10.0]
[1749226853441,14.10412934,151.15,151.14,10.0]
[1749226854439,9.19520376,151.15,151.14,10.0]
[1749226854639,7.49512918,151.15,151.14,10.0]
[1749226854841,7.49718066,151.15,151.14,10.0]
[1749226855339,14.10797648,151.15,151.14,10.0]
[1749226855735,7.49727648,151.15,151.14,10.0]
[1749226855942,7.50036798,151.15,151.14,10.0]
[1749226856637,7.50047602,151.15,151.14,10.0]
[1749226857048,7.50237544,151.15,151.14,10.0]
[1749226857647,7.502847,151.15,151.14,10.0]
[1749226857839,4.91487821,151.15,151.14,10.0]
[1749226858035,7.50292992,151.15,151.14,16.6112]
[1749226858236,2.58805682,151.15,151.14,10.0]
[1749226858435,7.50330034,151.15,151.14,10.0]
[1749226858639,7.50330034,151.15,151.14,16.6112]
[1749226858845,7.50356841,151.15,151.14,16.6112]
[1749226859350,7.50924038,151.15,151.14,16.6112]
[1749226859645,7.50924037,151.15,151.14,16.6112]
[1749226860447,7.50904275,151.15,151.14,16.6112]
[1749226860643,7.50878859,151.15,151.14,16.6112]
[1749226861047,7.50880103,151.15,151.14,16.6112]
[1749226861247,7.51676186,151.15,151.14,16.6112]
[1749226861549,7.51676186,151.15,151.14,10.0]
[1749226861748,7.51599491,151.15,151.14,10.0]
[1749226862051,14.12669491,151.15,151.14,10.0]
[1749226862449,14.12661935,151.15,151.14,10.0]
[1749226862752,11.52978168,151.15,151.14,10.0]
[1749226862945,7.51732427,151.15,151.14,10.0]
[1749226863352,2.59824259,151.15,151.14,10.0]
[1749226863544,7.54396462,151.15,151.14,10.0]
[1749226864149,7.54396462,151.15,151.14,16.6112]
[1749226864452,7.54603731,151.15,151.14,16.6112]
[1749226864654,7.54617254,151.15,151.14,16.6112]
[1749226864848,7.54628409,151.15,151.14,16.6112]
[1749226865154,4.94580326,151.15,151.14,10.0]
[1749226865348,7.54813662,151.15,151.14,10.0]
[1749226865542,14.15886887,151.15,151.14,10.0]
[1749226865752,7.54816887,151.15,151.14,10.0]
[1749226866252,7.54826107,151.15,151.14,10.0]
[1749226866444,7.54844711,151.15,151.14,10.0]
[1749226866752,7.54844571,151.15,151.14,10.0]
[1749226866949,0.04665086,151.16,151.14,10.0]
[1749226867157,2.60083944,151.15,151.14,10.0]
[1749226867651,0.59572082,151.15,151.14,16.6108]
[1749226867850,0.04665086,151.16,151.14,10.0]
[1749226868050,8.13353108,151.21,151.15,8.13353108]
[1749226868250,34.58,151.22,151.17,8.13353108]
[1749226868653,34.58,151.22,151.15,8.13353108]
[1749226868852,34.58,151.22,151.17,6.6098]
[1749226869251,34.58,151.22,151.18,0.04898399]
[1749226869252,0.04516401,151.21,151.18,0.04898399]
[1749226869757,6.65346401,151.21,151.18,6.65828399]
[1749226871051,0.04516401,151.21,151.18,6.65828399]
[1749226871261,0.04516401,151.21,151.18,0.04898399]
[1749226871651,0.04516401,151.21,151.2,6.6086]
[1749226873651,0.04516401,151.21,151.18,2.35718399]
[1749226873855,0.04516401,151.21,151.18,0.04898399]
[1749226874358,6.6088,151.2,151.18,0.04898399]
[1749226874556,0.04516401,151.21,151.18,0.04898399]
[1749226874758,6.65356401,151.21,151.18,0.04898399]
[1749226875259,0.04516401,151.21,151.18,0.04898399]
[1749226875655,6.6088,151.2,151.18,0.04898399]
[1749226875852,8.13353108,151.19,151.18,0.04898399]
[1749226876052,6.6107,151.15,151.14,10.0]
[1749226876656,6.6107,151.15,151.14,7.90748714]
[1749226878353,10.46304623,151.16,151.14,7.90748714]
[1749226878354,0.04481515,151.16,151.14,7.90748714]
[1749226878557,0.04481515,151.16,151.14,16.04101822]
[1749226878756,0.04481515,151.16,151.14,7.90748714]
[1749226879351,0.04481515,151.16,151.15,6.6107]
[1749226880353,4.79958107,151.18,151.16,8.13353108]
[1749226880551,6.6084,151.21,151.16,8.13353108]
[1749226880758,4.79956495,151.2,151.16,14.74353108]
[1749226880960,4.79956495,151.19,151.16,14.74353108]
[1749226881156,157.06603953,151.23,151.16,8.13353108]
[1749226881460,157.06603953,151.23,151.16,8.17574612]
[1749226881461,0.05032042,151.19,151.16,8.17574612]
[1749226881760,0.05032042,151.19,151.16,0.04221504]
[1749226882660,6.6099,151.17,151.16,0.04221504]
[1749226882961,11.41935259,151.17,151.16,0.04221504]
[1749226883363,19.55288367,151.17,151.16,0.04221504]
[1749226883563,6.6107,151.15,151.14,7.90748714]
[1749226883752,19.55368367,151.15,151.14,7.90748714]
[1749226884056,14.74423108,151.15,151.14,7.90748714]
[1749226884259,19.54530921,151.15,151.14,7.90748714]
[1749226885356,53.40100644,151.15,151.14,8.714e-05]
[1749226885565,58.20197023,151.15,151.14,8.714e-05]
[1749226885754,6.6112,151.14,151.13,2.952e-05]
[1749226886165,11.41152755,151.14,151.13,2.952e-05]
[1749226887961,11.37323413,151.14,151.13,2.952e-05]
[1749226889070,23.58354057,151.14,151.13,2.952e-05]
[1749226889570,23.57448106,151.14,151.13,2.952e-05]
[1749226889768,18.82150644,151.14,151.13,2.952e-05]
[1749226890063,23.57449033,151.14,151.13,2.952e-05]
[1749226890267,6.6116,151.13,151.12,6.15e-06]
[1749226890470,4.75298389,151.13,151.03,2.2006]
[1749226890768,6.6153,151.05,151.02,36.7647]
[1749226891066,12.21030644,151.06,151.0,2.1762]
[1749226891263,6.6167,151.02,150.99,34.62]
[1749226891463,0.04422837,151.02,150.99,0.04933674]
[1749226891965,6.66072837,151.02,150.99,0.04933674]
[1749226892268,0.04422837,151.02,150.99,10.04933674]
[1749226892567,0.04422837,151.02,150.99,16.66673674]
[1749226894360,0.04422837,151.02,151.0,6.6173]
[1749226894766,0.04422837,151.02,150.99,10.04933674]
[1749226895165,0.04422837,151.02,150.99,16.66683674]
[1749226895569,0.04422837,151.02,150.99,10.04933674]
[1749226895768,0.04422837,151.02,151.0,6.617]
[1749226896869,0.04422837,151.02,151.01,6.6169]
[1749226897167,4.5535,151.08,151.0,12.21030644]
[1749226897168,34.64,151.08,151.0,12.21030644]